bitfinex/quotes_ETHUSD_20240729
["timestamp","ask_amount","ask_price","bid_price","bid_amount"]
[1722274799552,0.64863322,3305.4,3304.3,0.06052361]
[1722274801764,3.02544,3305.3,3304.2,2.4015]
[1722274801968,0.64863322,3305.4,3304.2,2.4015]
[1722274802209,0.64863322,3305.4,3304.3,0.0605191]
[1722274802383,0.36738932,3305.3,3304.2,2.4015]
[1722274802593,5.883,3306.0,3304.3,0.06051908]
[1722274802766,3.02527,3305.5,3304.2,2.4015]
[1722274802969,3.02527,3305.5,3304.3,0.06051908]
[1722274803480,3.02536,3305.4,3304.3,0.06051908]
[1722274803682,3.02536,3305.4,3304.2,2.4015]
[1722274804015,0.31612618,3306.1,3304.0,6.02663]
[1722274804016,0.31612618,3306.1,3305.1,2.695]
[1722274804215,2.45601391,3307.1,3305.5,2.695]
[1722274804216,3.02416,3306.7,3305.5,2.695]
[1722274804549,3.02416,3306.7,3305.2,3.08596603]
[1722274804550,3.02435,3306.5,3305.3,0.06050113]
[1722274804736,3.02435,3306.5,3305.1,2.2941]
[1722274804737,0.302435,3306.4,3305.1,2.2941]
[1722274805229,3.0248,3306.0,3305.1,2.2941]
[1722274805369,3.02477,3306.1,3305.1,2.2941]
[1722274805574,3.02495,3305.9,3305.1,2.2941]
[1722274806283,3.02472,3306.1,3305.1,2.2941]
[1722274806682,3.188,3306.4,3305.1,2.2941]
[1722274806683,3.02482,3306.0,3305.1,2.2941]
[1722274806869,3.02499,3305.8,3305.1,2.2941]
[1722274807194,3.02499,3305.8,3304.4,2.4187]
[1722274807195,3.02505,3305.8,3304.4,2.4187]
[1722274807565,3.02507,3305.7,3304.4,2.4187]
[1722274807770,3.327392,3305.9,3304.5,0.06051582]
[1722274807966,6.02416,3306.7,3305.6,2.695]
[1722274808220,3.02398,3306.9,3305.7,2.3895]
[1722274808423,5.89634594,3307.3,3305.7,2.3895]
[1722274808424,3.02407,3306.8,3305.7,2.3895]
[1722274808832,3.02419,3306.7,3305.7,2.3895]
[1722274809322,3.02435,3306.5,3305.7,2.3895]
[1722274809615,0.302435,3306.4,3305.7,2.3895]
[1722274809810,3.02419,3306.7,3305.7,2.3895]
[1722274810320,3.02407,3306.8,3305.7,2.3895]
[1722274810606,3.02426,3306.6,3305.7,2.3895]
[1722274810814,3.0241,3306.8,3305.7,2.3895]
[1722274811017,3.02399,3306.9,3305.7,2.3895]
[1722274811018,3.628979,3306.7,3305.7,2.3895]
[1722274811248,3.02427,3306.6,3305.7,2.3895]
[1722274811370,3.02442,3306.5,3305.7,2.3895]
[1722274811571,2.2934,3306.5,3304.9,2.4912]
[1722274811794,3.02454,3306.3,3304.9,2.4912]
[1722274812014,3.0246,3306.3,3304.9,2.4912]
[1722274812418,3.02444,3306.4,3305.1,2.3199]
[1722274812812,3.32418,3306.7,3305.1,2.3199]
[1722274812813,3.0243,3306.6,3305.1,2.3199]
[1722274813031,6.02435,3306.5,3305.1,2.3199]
[1722274814117,3.02445,3306.4,3305.1,2.3199]
[1722274815112,3.02472,3306.1,3305.1,2.3199]
[1722274815323,0.302472,3306.0,3305.1,2.3199]
[1722274816202,3.327272,3306.0,3305.1,2.3199]
[1722274816635,3.02504,3305.8,3305.1,2.3199]
[1722274817137,3.0249,3305.9,3305.1,2.3199]
[1722274817644,0.302472,3306.0,3305.1,2.3199]
[1722274817864,0.3327182,3305.9,3305.1,2.3199]
[1722274818200,3.02468,3306.2,3305.1,2.3199]
[1722274818403,10.39444,3306.4,3305.1,2.3199]
[1722274818606,10.39444,3306.4,3305.1,2.38040585]
[1722274818607,3.02454,3306.3,3305.1,2.38040585]
[1722274818804,7.37,3306.4,3305.1,2.38040585]
[1722274819020,8.107,3306.4,3305.3,2.3859]
[1722274819223,8.107,3306.4,3305.3,2.4464018]
[1722274819649,11.13144,3306.4,3305.3,2.4464018]
[1722274819850,8.107,3306.4,3305.3,2.4464018]
[1722274820073,7.37,3306.4,3305.3,2.4464018]
[1722274820219,3.02434,3306.5,3305.3,2.4464018]
[1722274820919,3.32418,3306.7,3305.3,5.4718318]
[1722274821533,3.32418,3306.7,3305.4,2.4811]
[1722274821870,3.32418,3306.7,3305.5,0.06049679]
[1722274822091,0.332418,3306.6,3305.5,0.61719947]
[1722274823247,3.32418,3306.7,3305.6,2.4811]
[1722274823248,0.3,3306.7,3305.6,2.4811]
[1722274823457,3.0,3306.9,3305.7,0.06049509]
[1722274823622,6.02398,3306.9,3305.7,0.06049509]
[1722274825050,3.0,3306.9,3305.8,2.4345]
[1722274825960,3.02359,3307.4,3305.9,2.4345]
[1722274826163,3.02359,3307.4,3306.0,0.61248291]
[1722274827039,3.02362,3307.3,3306.0,0.61248291]
[1722274827236,3.0237,3307.2,3306.0,0.61248291]
[1722274827570,3.02379,3307.1,3306.0,0.06048641]
[1722274827942,3.02379,3307.1,3305.9,2.4345]
[1722274828139,3.02368,3307.3,3305.9,2.4345]
[1722274828334,3.02373,3307.2,3305.9,2.4345]
[1722274829371,3.02379,3307.1,3305.9,2.4345]
[1722274829551,3.02379,3307.1,3306.0,0.24345]
[1722274829736,3.02393,3307.0,3306.0,0.24345]
[1722274830245,5.3831,3307.6,3305.9,2.4345]
[1722274830246,2.695,3307.4,3305.9,2.4345]
[1722274830458,3.02425,3306.6,3305.9,2.4345]
[1722274830661,3.0241,3306.8,3305.9,2.4345]
[1722274830826,0.604809,3306.7,3305.9,2.4345]
[1722274831173,3.0238,3307.1,3306.0,0.06048976]
[1722274832271,3.07523582,3307.0,3306.0,0.06048976]
[1722274833546,3.02398,3306.9,3305.9,2.4345]
[1722274833781,3.07398311,3306.8,3305.9,2.4345]
[1722274833930,0.04991311,3306.8,3305.9,2.4345]
[1722274834127,3.02392,3307.0,3306.0,0.06048962]
[1722274834329,0.04995663,3306.9,3306.0,0.06048962]
[1722274834946,0.04995663,3306.9,3306.1,2.3422]
[1722274835147,0.04995663,3306.9,3306.2,0.30075525]
[1722274835481,0.04992749,3306.8,3306.2,0.30075525]
[1722274835631,0.04992749,3306.8,3306.2,0.06048629]
[1722274835965,10.39346,3307.5,3306.3,2.2537]
[1722274836170,0.04989836,3306.7,3306.4,0.06048498]
[1722274836387,7.37,3307.6,3306.6,2.2537]
[1722274836682,3.02309,3307.9,3306.7,0.06047524]
[1722274836835,3.02309,3307.9,3306.8,2.2537]
[1722274837176,0.302309,3307.8,3306.9,0.0604752]
[1722274837470,3.02295,3308.1,3306.9,0.0604752]
[1722274837676,3.02321,3307.8,3306.8,2.2537]
[1722274837831,3.02324,3307.7,3306.8,2.2537]
[1722274838390,3.02328,3307.7,3306.8,2.2537]
[1722274838979,3.02339,3307.6,3306.8,2.2537]
[1722274839179,3.628157,3307.5,3306.8,2.2537]
[1722274839776,3.02365,3307.3,3306.8,2.2537]
[1722274840091,3.02365,3307.3,3306.3,2.3296]
[1722274840266,3.628117,3307.5,3306.3,2.3296]
[1722274840468,0.604667,3307.5,3306.3,2.3296]
[1722274840699,3.0234,3307.6,3306.4,0.06048331]
[1722274841004,3.02344,3307.5,3306.4,0.06048331]
[1722274841589,3.02353,3307.4,3306.3,2.3296]
[1722274841734,3.02366,3307.3,3306.3,2.3296]
[1722274841937,0.604724,3307.2,3306.3,2.3296]
[1722274842141,2.2752,3308.1,3306.5,2.3192]
[1722274842363,3.02345,3307.5,3306.5,2.3192]
[1722274842701,3.02345,3307.5,3306.6,0.06047836]
[1722274842904,0.05022841,3307.4,3306.6,0.06047836]
[1722274843209,0.05022841,3307.4,3306.5,2.3192]
[1722274843505,0.05022841,3307.4,3306.6,0.06047834]
[1722274843705,0.05022841,3307.4,3306.6,0.29844617]
[1722274843914,3.02309,3307.9,3306.7,2.4384]
[1722274844059,0.05017054,3307.3,3306.8,0.06047449]
[1722274844263,6.0229,3308.1,3306.8,0.06047449]
[1722274844514,1.33929,3308.0,3307.0,2.4384]
[1722274844713,1.38973003,3308.0,3307.0,2.49887063]
[1722274845409,0.05044003,3308.0,3307.2,2.695]
[1722274845625,0.05044003,3308.0,3306.9,0.24988745]
[1722274845626,0.31614441,3308.5,3307.7,2.4384]
[1722274845828,0.05041428,3307.9,3307.7,2.4384]
[1722274846138,0.31614441,3308.5,3307.7,2.4384]
[1722274846496,3.07344745,3308.4,3307.7,2.4384]
[1722274846700,0.33895919,3308.3,3307.7,2.4384]
[1722274847100,0.05079713,3308.2,3307.7,2.4384]
[1722274847901,3.02262,3308.4,3307.7,2.4384]
[1722274848103,0.05076802,3308.1,3307.7,2.4384]
[1722274848335,0.31614441,3308.5,3307.7,2.4384]
[1722274848494,0.04898833,3308.0,3307.7,2.4384]
[1722274848697,0.34868823,3308.4,3307.7,2.4384]
[1722274848952,0.04895718,3307.9,3307.7,2.4384]
[1722274849254,0.31614441,3308.5,3307.8,0.0604621]
[1722274849877,0.31614441,3308.5,3307.9,2.3907]
[1722274850061,0.31614441,3308.5,3308.0,0.3055664]
[1722274850977,0.31614441,3308.5,3307.9,2.3907]
[1722274851161,3.33865441,3308.5,3307.9,2.3907]
[1722274851376,0.31614441,3308.5,3307.9,2.3907]
[1722274851538,3.02279,3308.2,3307.3,2.4122]
[1722274851940,3.02262,3308.4,3307.3,2.4122]
[1722274851941,6.04529,3308.4,3307.3,2.4122]
[1722274852257,3.02316,3307.8,3306.9,2.4578]
[1722274852446,3.02325,3307.7,3306.9,2.4578]
[1722274853039,3.02325,3307.7,3305.8,13.05995]
[1722274853040,3.02363,3307.3,3306.0,2.2533]
[1722274853236,3.0238,3307.1,3306.0,2.2533]
[1722274853632,6.78,3307.6,3306.0,2.2533]
[1722274853832,3.02416,3306.7,3306.0,2.2533]
[1722274854230,0.91329,3307.5,3306.1,0.06048897]
[1722274854636,3.02363,3307.3,3306.1,0.06048897]
[1722274854869,3.02414,3306.8,3306.0,2.2533]
[1722274855086,3.02389,3307.0,3306.0,2.2533]
[1722274855293,3.02417,3306.7,3306.0,2.2533]
[1722274857236,3.02412,3306.8,3306.0,2.2533]
[1722274857443,3.62893,3306.8,3306.0,2.2533]
[1722274857892,0.04672893,3306.7,3306.0,2.2533]
[1722274858046,3.07090893,3306.7,3306.0,2.2533]
[1722274858443,0.04672893,3306.7,3306.0,2.2533]
[1722274858713,3.02438,3306.5,3305.5,2.4333]
[1722274858882,3.02462,3306.2,3305.5,2.4333]
[1722274859244,0.04473531,3306.1,3305.5,2.4333]
[1722274859444,3.02455,3306.3,3305.5,2.4333]
[1722274859675,0.04468583,3306.0,3305.5,2.4333]
[1722274859855,3.02455,3306.3,3305.5,2.4333]
[1722274860184,3.02462,3306.2,3305.5,2.4333]
[1722274860369,3.02472,3306.1,3305.5,2.4333]
[1722274860679,0.04469411,3306.1,3305.5,2.4333]
[1722274861048,3.02427,3306.6,3305.5,2.4333]
[1722274861243,0.04487474,3306.0,3305.5,2.4333]
[1722274861471,3.02444,3306.4,3305.6,0.24333]
[1722274861644,0.0448456,3305.9,3305.6,0.24333]
[1722274861841,3.02404,3306.9,3305.7,0.0604951]
[1722274862080,3.59,3307.2,3305.8,2.4032]
[1722274862380,3.02431,3306.6,3305.8,2.4032]
[1722274862583,3.02407,3306.8,3304.8,3.0259]
[1722274862584,3.59,3306.8,3304.8,3.0259]
[1722274862756,3.02462,3306.2,3305.0,2.9532]
[1722274862946,3.327082,3306.2,3305.1,0.59532]
[1722274863139,3.02453,3306.3,3305.1,0.59532]
[1722274863342,3.02477,3306.1,3305.1,0.59532]
[1722274863538,3.02453,3306.3,3305.1,0.59532]
[1722274863783,3.02462,3306.2,3305.1,0.59532]
[1722274864242,3.02485,3306.0,3305.1,0.59532]
[1722274864443,3.02485,3306.0,3305.2,0.299852]
[1722274864902,3.02485,3306.0,3305.1,0.59532]
[1722274864903,3.02498,3305.8,3305.0,2.4032]
[1722274865837,3.02481,3306.0,3305.0,2.4032]
[1722274865838,3.02508,3305.7,3305.0,2.4032]
[1722274866132,3.02496,3305.9,3305.0,2.4032]
[1722274866341,3.02477,3306.1,3305.0,2.4032]
[1722274866541,11.68574,3306.7,3305.1,2.5374059]
[1722274866542,3.0,3306.7,3305.1,2.5374059]
[1722274866751,3.0,3307.0,3305.2,0.0604931]
[1722274866934,3.0,3307.0,3305.4,2.4769]
[1722274867119,3.02432,3306.6,3305.5,0.06049489]
[1722274867319,3.02432,3306.6,3305.6,0.25373949]
[1722274867669,3.02418,3306.7,3305.7,0.06049185]
[1722274868170,3.02431,3306.6,3305.6,0.25373949]
[1722274868650,3.02361,3307.3,3305.9,2.4748]
[1722274868849,3.02361,3307.3,3306.0,1.16045534]
[1722274869353,5.46306,3307.5,3306.0,1.16045534]
[1722274869649,3.02327,3307.7,3306.3,3.02452]
[1722274869850,5.47558,3307.9,3306.5,2.4748]
[1722274870156,3.02386,3307.1,3306.5,2.4748]
[1722274870324,3.02398,3306.9,3306.5,2.4748]
[1722274870511,3.02398,3306.9,3305.8,2.2612]
[1722274870921,0.302386,3307.0,3305.8,2.2612]
[1722274871136,3.326296,3307.0,3305.8,2.2612]
[1722274871338,3.02398,3306.9,3305.8,2.2612]
[1722274871514,3.02398,3306.9,3305.9,0.52612]
[1722274871976,0.302386,3307.0,3305.9,0.52612]
[1722274872285,3.02364,3307.3,3306.1,2.285]
[1722274872422,3.02364,3307.3,3306.2,0.06048619]
[1722274872821,3.02364,3307.3,3306.1,2.34548614]
[1722274872822,0.0413203,3307.2,3306.1,2.34548614]
[1722274873322,3.02352,3307.4,3306.1,2.34548614]
[1722274873520,0.03982813,3307.1,3306.1,5.37017614]
[1722274873819,0.03979899,3307.0,3306.2,0.83949661]
[1722274874020,10.39326,3307.7,3306.3,0.060482]
[1722274874021,3.02338,3307.6,3306.3,0.060482]
[1722274874366,0.03976986,3306.9,3306.4,2.315]
[1722274874653,10.39326,3307.7,3306.4,2.315]
[1722274874654,7.37,3307.7,3306.5,0.2315]
[1722274874829,0.03994919,3306.8,3306.5,3.31622359]
[1722274875034,7.37,3307.7,3306.7,3.02416]
[1722274875256,12.17,3308.2,3306.7,3.02416]
[1722274875257,3.02284,3308.2,3306.8,0.64938718]
[1722274875441,10.39272,3308.3,3306.9,2.315]
[1722274875647,3.02272,3308.3,3307.0,0.06047109]
[1722274876071,0.31600949,3308.4,3307.1,2.315]
[1722274876267,0.31600949,3308.4,3307.4,3.02351]
[1722274876466,0.31600949,3308.4,3307.5,0.302351]
[1722274876828,0.31600949,3308.4,3307.2,3.02368]
[1722274877142,0.31600949,3308.4,3307.1,2.865]
[1722274877143,0.31600949,3308.4,3307.3,3.57361]
[1722274877543,0.31600949,3308.4,3307.3,0.55]
[1722274877728,0.31600949,3308.4,3307.2,0.55]
[1722274877927,3.33867949,3308.4,3307.1,2.315]
[1722274878165,0.31600949,3308.4,3307.1,2.315]
[1722274878474,3.33860949,3308.4,3307.1,2.315]
[1722274879775,3.0228,3308.2,3307.1,2.315]
[1722274879927,3.33860949,3308.4,3307.1,2.315]
[1722274879928,0.31600949,3308.4,3307.1,2.315]
[1722274880133,3.02288,3308.1,3307.1,2.315]
[1722274881258,3.02297,3308.0,3307.1,2.315]
[1722274881566,3.02283,3308.2,3307.1,2.315]
[1722274881979,3.02289,3308.1,3307.1,2.315]
[1722274882383,3.02272,3308.3,3307.1,2.315]
[1722274882537,3.02297,3308.0,3307.1,2.315]
[1722274883141,3.59492295,3308.2,3307.1,2.315]
[1722274883375,3.02289,3308.1,3307.1,2.315]
[1722274883536,3.02298,3308.0,3307.1,2.315]
[1722274883945,0.57213295,3308.2,3307.1,2.315]
[1722274883946,3.59492295,3308.2,3307.1,2.315]
[1722274884139,3.02279,3308.2,3307.1,2.5465]
[1722274884684,3.0229,3308.1,3307.1,2.5465]
[1722274884884,3.02279,3308.2,3307.1,2.5465]
[1722274885279,3.02292,3308.1,3307.1,2.5465]
[1722274885447,3.02292,3308.1,3307.2,0.25465]
[1722274885981,3.02275,3308.3,3307.2,0.25465]
[1722274886141,5.72123949,3308.4,3307.2,0.25465]
[1722274886142,3.0228,3308.2,3307.2,0.25465]
[1722274886345,8.74390949,3308.4,3307.2,0.25465]
[1722274886543,5.72123949,3308.4,3307.2,0.31511709]
[1722274886804,0.31600949,3308.4,3307.3,0.3234788]
[1722274887375,3.33860949,3308.4,3307.3,0.3234788]
[1722274887573,3.33860949,3308.4,3307.3,0.26301171]
[1722274887890,3.05851117,3308.3,3307.3,0.26301171]
[1722274889209,0.03580117,3308.3,3307.4,0.06046359]
[1722274891255,0.03580117,3308.3,3307.4,0.06046358]
[1722274891589,0.03580117,3308.3,3307.6,2.3334]
[1722274891796,0.03580117,3308.3,3307.7,0.29984411]
[1722274894149,0.03580117,3308.3,3307.8,0.06045827]
[1722274894353,0.03580117,3308.3,3307.8,3.08359827]
[1722274895493,0.03580117,3308.3,3307.9,2.2689]
[1722274895660,0.03580117,3308.3,3308.0,0.0604511]
[1722274895862,0.03580117,3308.3,3308.1,0.23293511]
[1722274899314,0.03580117,3308.3,3308.2,0.06045111]
[1722274901814,0.03246054,3308.3,3308.2,0.06045111]
[1722274901988,7.37,3308.9,3308.2,0.06045111]
[1722274902183,0.03262236,3308.8,3308.2,0.06045111]
[1722274902383,0.03262236,3308.8,3308.3,0.33162062]
[1722274902589,0.03262236,3308.8,3308.4,0.06044541]
[1722274902988,0.03262236,3308.8,3308.1,0.23293511]
[1722274903187,0.03262236,3308.8,3307.9,2.2689]
[1722274903603,0.14812631,3309.0,3307.9,2.2689]
[1722274903799,0.03164248,3308.7,3307.9,2.2689]
[1722274904120,3.16899485,3309.1,3307.9,2.2689]
[1722274904283,0.03161338,3308.6,3307.9,2.2689]
[1722274904483,3.02206,3309.0,3308.0,0.22689]
[1722274905014,0.03163406,3308.9,3308.0,0.22689]
[1722274905428,3.16894485,3309.1,3308.0,0.22689]
[1722274905599,0.03160496,3308.8,3308.0,0.22689]
[1722274905800,3.02213,3309.0,3308.0,0.22689]
[1722274906123,5.74378406,3308.9,3307.9,2.2689]
[1722274906342,5.74379406,3308.9,3307.9,2.2689]
[1722274906837,3.02224,3308.8,3307.9,2.2689]
[1722274907040,3.05379612,3308.8,3307.9,2.2689]
[1722274907244,6.07612612,3308.8,3307.9,2.2689]
[1722274907433,6.07612612,3308.8,3307.7,0.23938583]
[1722274907434,0.87661261,3308.7,3307.7,0.23938583]
[1722274907606,0.03152702,3308.7,3307.7,0.23938583]
[1722274908106,2.69,3308.5,3307.0,9.6363]
[1722274908346,2.69,3308.5,3307.0,2.2963]
[1722274908649,0.0314397,3308.4,3307.1,0.06046538]
[1722274908831,0.0314397,3308.4,3307.1,3.08425538]
[1722274909140,0.0314397,3308.4,3307.2,3.56172554]
[1722274909348,3.0540597,3308.4,3307.3,0.06046012]
[1722274910207,3.0540597,3308.4,3307.2,0.53805554]
[1722274910404,0.0314397,3308.4,3307.0,2.2963]
[1722274910803,3.02284,3308.2,3307.0,2.2963]
[1722274911021,0.03125467,3308.1,3307.1,0.06046632]
[1722274911951,0.03125467,3308.1,3307.2,0.55]
[1722274912261,3.0224,3308.7,3307.3,0.06045993]
[1722274912409,0.03100197,3308.0,3307.4,0.36341299]
[1722274912609,3.0224,3308.7,3307.5,0.06045967]
[1722274912863,0.03095156,3307.9,3307.5,0.06045967]
[1722274913040,3.02244,3308.6,3307.5,0.06045967]
[1722274913247,0.03092244,3307.8,3307.5,0.06045967]
[1722274913555,10.39253,3308.5,3307.5,0.06045967]
[1722274913725,3.02253,3308.5,3307.5,0.06045967]
[1722274914059,0.03000501,3308.4,3307.5,0.06045967]
[1722274914272,0.14903925,3308.8,3307.9,3.02299]
[1722274914415,0.02767663,3308.3,3308.0,0.302299]
[1722274914750,0.02767663,3308.3,3307.6,5.5143]
[1722274914751,7.37,3309.1,3308.1,0.55]
[1722274914950,7.37,3309.1,3307.9,0.55]
[1722274915155,0.02816993,3309.0,3307.9,0.55]
[1722274915361,0.02816993,3309.0,3308.0,2.2743]
[1722274916076,0.02816993,3309.0,3308.1,0.06045012]
[1722274916220,0.02816993,3309.0,3308.1,0.29392513]
[1722274916853,0.31615511,3308.9,3308.1,0.29392513]
[1722274917019,0.34444339,3308.9,3308.1,0.29392513]
[1722274918323,0.06045019,3308.8,3308.0,2.06822513]
[1722274918615,0.02828755,3308.7,3308.0,2.06822513]
[1722274919334,0.02828755,3308.7,3308.1,0.06045017]
[1722274919767,0.43144303,3308.7,3307.4,0.36341299]
[1722274920064,3.02243,3308.6,3307.4,0.36341299]
[1722274920274,0.06045019,3308.5,3307.4,0.36341299]
[1722274920554,0.08848733,3308.5,3307.4,0.36341299]
[1722274921056,0.02803714,3308.5,3307.5,0.06045694]
[1722274921437,0.02803714,3308.5,3307.6,2.2776]
[1722274921623,0.02803714,3308.5,3307.7,0.06045695]
[1722274922137,5.43986,3308.7,3307.4,0.36341299]
[1722274922318,5.43986,3308.7,3307.2,2.2776]
[1722274922319,0.02700155,3308.4,3307.2,2.2776]
[1722274922520,3.02272,3308.3,3307.2,2.2776]
[1722274922760,0.02697238,3308.3,3307.2,2.2776]
[1722274922931,0.02697238,3308.3,3307.3,0.06046024]
[1722274923132,3.02247,3308.6,3307.4,0.23380602]
[1722274923438,3.02251,3308.5,3307.5,0.06046025]
[1722274924021,3.02251,3308.5,3307.4,0.23380602]
[1722274924022,3.0227,3308.3,3307.2,2.2776]
[1722274924462,3.02252,3308.5,3307.2,2.2776]
[1722274924676,0.302252,3308.4,3307.3,0.28822026]
[1722274924965,3.02243,3308.6,3307.3,0.28822026]
[1722274925183,3.02243,3308.6,3307.3,0.22776]
[1722274925860,3.02261,3308.4,3307.3,0.22776]
[1722274927253,5.4175,3308.7,3307.3,0.22776]
[1722274927561,5.4175,3308.7,3307.2,2.2776]
[1722274927562,3.02282,3308.2,3307.2,2.2776]
[1722274928393,3.02289,3308.1,3307.2,2.2776]
[1722274928766,3.0228,3308.2,3307.2,2.2776]
[1722274928947,3.02302,3308.0,3307.2,2.2776]
[1722274929152,3.627605,3308.0,3307.2,2.2776]
[1722274929577,3.627605,3308.0,3306.7,2.4084]
[1722274929578,3.02306,3307.9,3306.7,2.4084]
[1722274929855,3.627595,3308.0,3306.8,0.55]
[1722274930048,3.02301,3308.0,3306.8,3.55]
[1722274930754,3.02308,3307.9,3306.8,3.55]
[1722274930954,2.2525,3307.9,3306.7,2.4084]
[1722274931263,3.02355,3307.4,3306.0,3.32788]
[1722274931483,2.2525,3307.9,3306.2,2.4398]
[1722274931484,3.628324,3307.3,3306.2,2.4398]
[1722274931652,3.02377,3307.2,3306.2,2.4398]
[1722274931857,3.628324,3307.3,3306.2,2.4398]
[1722274931858,3.02383,3307.1,3306.2,2.4398]
[1722274932498,3.02389,3307.0,3306.2,2.4398]
[1722274932667,3.02383,3307.1,3305.6,2.4398]
[1722274932668,3.628752,3306.9,3305.6,2.4398]
[1722274932871,0.604772,3306.9,3305.6,2.4398]
[1722274933197,3.628812,3306.9,3305.6,2.4398]
[1722274933959,3.02407,3306.8,3305.6,2.4398]
[1722274934166,3.02425,3306.7,3305.6,2.4398]
[1722274934372,3.326735,3306.6,3305.6,2.4398]
[1722274934664,3.02449,3306.4,3305.6,2.4398]
[1722274935099,0.302425,3306.6,3305.6,2.4398]
[1722274935298,3.02486,3306.0,3304.8,2.4746]
[1722274935600,5.71486,3306.0,3304.8,2.4746]
[1722274935785,3.02489,3305.9,3304.8,2.4746]
[1722274935985,3.02501,3305.8,3304.8,2.4746]
[1722274936305,3.02485,3306.0,3304.8,2.4746]
[1722274936527,3.02467,3306.2,3304.9,0.24746]
[1722274936674,3.02454,3306.3,3304.9,0.24746]
[1722274936871,3.02472,3306.1,3304.9,0.24746]
[1722274937618,7.37,3306.7,3305.2,3.0255]
[1722274937820,2.2618,3307.0,3305.4,2.2551]
[1722274938014,3.02425,3306.6,3305.4,2.2551]
[1722274938213,2.2618,3307.0,3305.5,0.61049117]
[1722274938518,5.2857,3307.0,3305.6,3.02514]
[1722274938815,5.2857,3307.0,3305.7,0.61048892]
[1722274938816,3.024,3306.9,3305.7,0.61048892]
[1722274939018,3.024,3306.9,3305.8,0.06048825]
[1722274939019,3.55258,3306.9,3305.8,0.06048825]
[1722274939515,3.21858,3306.9,3305.4,2.2551]
[1722274939715,6.24258,3306.9,3305.4,2.2551]
[1722274940091,3.02408,3306.8,3305.4,2.2551]
[1722274940290,0.624266,3306.7,3305.4,2.833416]
[1722274940490,3.648486,3306.7,3305.4,2.833416]
[1722274940690,5.28571,3307.0,3305.7,3.02507]
[1722274940691,2.2618,3307.0,3305.7,3.02507]
[1722274940903,5.28569,3307.0,3305.8,0.06048836]
[1722274941626,3.02398,3306.9,3305.8,0.06048836]
[1722274941984,2.2618,3307.0,3305.8,0.06048836]
[1722274941985,3.02407,3306.8,3305.8,0.06048836]
[1722274942179,3.552657,3306.8,3305.4,5.858756]
[1722274942386,3.02418,3306.7,3305.5,0.55]
[1722274942627,3.02418,3306.7,3305.4,2.833416]
[1722274942628,3.02449,3306.4,3305.4,2.2551]
[1722274942921,3.02463,3306.2,3305.4,2.2551]
[1722274943082,0.604912,3306.2,3305.4,2.2551]
[1722274943283,3.02454,3306.3,3305.4,2.2551]
[1722274943487,5.71427,3306.6,3305.4,2.2551]
[1722274943723,2.69,3306.6,3305.4,2.2551]
[1722274943923,3.02444,3306.4,3305.4,2.2551]
[1722274944134,5.71426,3306.6,3305.4,2.2551]
[1722274944287,0.571426,3306.5,3305.5,0.06049967]
[1722274944482,3.02421,3306.7,3305.5,0.06049967]
[1722274945425,3.528587,3306.8,3305.4,2.2551]
[1722274945719,5.71434,3306.6,3305.4,2.2551]
[1722274945912,3.02439,3306.5,3305.4,2.2551]
[1722274946226,3.552677,3306.8,3305.5,0.06050049]
[1722274946423,3.552677,3306.8,3305.5,0.59459354]
[1722274946424,0.3528587,3306.7,3305.5,0.59459354]
[1722274947188,0.528587,3306.8,3305.7,2.3962]
[1722274947394,3.02372,3307.2,3305.8,0.06048784]
[1722274947595,3.02372,3307.2,3305.9,0.55]
[1722274948224,3.02372,3307.2,3306.0,0.06048436]
[1722274948431,3.02372,3307.2,3305.9,0.55]
[1722274948626,3.02372,3307.2,3305.8,0.55]
[1722274948627,3.02395,3307.0,3305.8,0.55]
[1722274948826,0.302395,3306.9,3305.8,1.14713]
[1722274949232,3.0238,3307.1,3305.8,1.14713]
[1722274949727,3.02389,3307.0,3305.8,1.14713]
[1722274949934,3.02364,3307.3,3305.8,1.14713]
[1722274950089,3.02386,3307.1,3305.9,0.06048713]
[1722274950541,3.02386,3307.1,3305.8,1.14713]
[1722274950843,7.99584,3307.4,3306.1,2.3738]
[1722274950995,7.99584,3307.4,3306.2,0.06048432]
[1722274952352,3.02362,3307.3,3306.2,0.06048432]
[1722274952675,3.02354,3307.4,3306.2,0.06048432]
[1722274952874,5.1538,3307.8,3306.3,0.3039087]
[1722274952875,3.02325,3307.7,3306.3,0.3039087]
[1722274953171,8.17697,3307.8,3306.4,2.3562]
[1722274953374,7.37,3307.9,3306.5,0.06047684]
[1722274953657,7.37,3307.9,3306.6,3.26590768]
[1722274953658,3.02312,3307.9,3306.6,3.26590768]
[1722274953864,3.02312,3307.9,3306.7,0.06047318]
[1722274954156,3.02291,3308.1,3306.7,0.06047318]
[1722274954358,5.71273,3308.3,3306.8,2.4995]
[1722274954359,3.023,3308.0,3306.8,2.4995]
[1722274954567,3.023,3308.0,3306.9,0.31647049]
[1722274954920,3.02306,3307.9,3306.9,0.31647049]
[1722274955171,3.02321,3307.8,3306.9,0.31647049]
[1722274955395,3.02321,3307.8,3306.9,0.06047317]
[1722274955950,3.02334,3307.6,3306.9,0.06047317]
[1722274956462,3.02315,3307.8,3306.9,0.06047317]
[1722274956759,3.02349,3307.5,3306.8,2.4995]
[1722274956962,3.02349,3307.5,3306.4,2.4346]
[1722274956963,0.302349,3307.4,3306.4,2.4346]
[1722274957169,3.02349,3307.5,3306.4,2.4346]
[1722274957325,3.02362,3307.3,3306.4,2.4346]
[1722274957922,3.02386,3307.1,3306.4,2.4346]
[1722274958877,3.02386,3307.1,3305.6,2.4346]
[1722274959089,3.02386,3307.1,3305.7,3.571055]
[1722274959090,3.02389,3307.0,3305.7,3.571055]
[1722274959293,3.02389,3307.0,3305.8,3.0]
[1722274959965,3.024,3306.9,3305.7,0.545985]
[1722274960180,3.024,3306.9,3305.7,3.545985]